fUSD/lending_fUSD_20250911
["ID","MTS","AMOUNT","RATE_DAILY","PERIOD"]
[384927566,1757627516257,-612.46,0.00028767,7]
[384927567,1757627516274,-619.53,0.00028767,7]
[384927568,1757627516290,-400.0,0.00028767,7]
[384927569,1757627516305,-502.36,0.00028767,7]
[384927570,1757627516321,-726.74,0.00028767,7]
[384927571,1757627516338,-708.25,0.00028767,7]
[384927572,1757627516354,-400.0,0.00028767,7]
[384927573,1757627516369,-687.63,0.00028767,7]
[384927574,1757627516385,-2492.29,0.00028767,7]
[384927575,1757627516403,-525.18,0.00028767,7]
[384927576,1757627516418,-400.0,0.00028767,7]
[384927577,1757627516433,-1811.61,0.00028767,7]
[384927578,1757627516449,-400.0,0.00028767,7]
[384927579,1757627516465,-2450.83,0.00028767,7]
[384927580,1757627516480,-3678.48,0.00028767,7]
[384927581,1757627516495,-451.31,0.00028767,7]
[384927582,1757627516510,-400.0,0.00028767,7]
[384927583,1757627516524,-1480.88,0.00028767,7]
[384927584,1757627516539,-400.0,0.00028767,7]
[384927585,1757627516555,-400.0,0.00028767,7]
[384927586,1757627516569,-824.46,0.00028767,7]
[384927587,1757627516585,-400.0,0.00028767,7]
[384927588,1757627516600,-400.0,0.00028767,7]
[384927589,1757627516617,-615.43,0.00028767,7]
[384927590,1757627516631,-1426.55,0.00028767,7]
[384927591,1757627516646,-400.0,0.00028767,7]
[384927592,1757627516661,-1733.33,0.00028767,7]
[384927593,1757627516676,-400.0,0.00028767,7]
[384927594,1757627516691,-1444.75,0.00028767,7]
[384927595,1757627516707,-656.5,0.00028767,7]
[384927596,1757627516722,-663.82,0.00028767,7]
[384927597,1757627516738,-400.0,0.00028767,7]
[384927598,1757627516753,-1413.55,0.00028767,7]
[384927599,1757627516767,-1859.7,0.00028767,7]
[384927600,1757627516782,-400.0,0.00028767,7]
[384927601,1757627516795,-400.0,0.00028767,7]
[384927602,1757627516810,-1657.72,0.00028767,7]
[384927603,1757627516825,-176.08179815,0.00028767,7]
[384927604,1757627516840,-400.0,0.00028767,7]
[384927605,1757627516856,-1771.5,0.00028767,7]
[384927606,1757627516871,-400.0,0.00028767,7]
[384927607,1757627516887,-1895.65,0.00028767,7]
[384927608,1757627516902,-1281.78,0.00028767,7]
[384927609,1757627516919,-1064.31,0.00028767,7]
[384927610,1757627516939,-1607.9,0.00028767,7]
[384927611,1757627516953,-618.96,0.00028767,7]
[384927612,1757627516968,-400.0,0.00028767,7]
[384927613,1757627516982,-400.0,0.00028767,7]
[384927614,1757627516997,-555.14,0.00028767,7]
[384927615,1757627517012,-400.0,0.00028767,7]
[384927616,1757627517027,-400.0,0.00028767,7]
[384927617,1757627517043,-8723.99,0.00028767,7]
[384927618,1757627517066,-400.0,0.00028767,7]
[384927619,1757627517080,-413.57,0.00028767,7]
[384927620,1757627517094,-10846.33,0.00028767,7]
[384927621,1757627517109,-2723.99,0.00028767,7]
[384927622,1757627517123,-2416.16,0.00028767,7]
[384927623,1757627517138,-400.0,0.00028767,7]
[384927624,1757627517153,-1588.95,0.00028767,7]
[384927625,1757627517176,-1251.69,0.00028767,7]
[384927626,1757627517199,-400.0,0.00028767,7]
[384927627,1757627517222,-3367.99,0.00028767,7]
[384927628,1757627517241,-571.98,0.00028767,7]
[384927629,1757627517261,-1485.57,0.00028767,7]
[384927630,1757627517279,-1511.45,0.00028767,7]
[384927631,1757627517298,-580.95,0.00028767,7]
[384927632,1757627517317,-1402.77,0.00028767,7]
[384927633,1757627517338,-2512.68,0.00028767,7]
[384927634,1757627517355,-400.0,0.00028767,7]
[384927635,1757627517374,-2129.92,0.00028767,7]
[384927636,1757627517391,-1100.85,0.00028767,7]
[384927637,1757627517407,-1468.07,0.00028767,7]
[384927638,1757627517425,-1235.68,0.00028767,7]
[384927639,1757627517442,-400.0,0.00028767,7]
[384927640,1757627517458,-400.0,0.00028767,7]
[384927641,1757627517476,-454.38753446,0.00028767,7]
[384927642,1757627517492,-1148.27,0.00028767,7]
[384927643,1757627517509,-659.2,0.00028767,7]
[384927644,1757627517525,-677.06,0.00028767,7]
[384927645,1757627517541,-416.29141731,0.00028767,7]
[384927646,1757627517558,-4042.54,0.00028767,7]
[384927647,1757627517573,-1478.86,0.00028767,7]
[384927648,1757627517588,-596.08,0.00028767,7]
[384927649,1757627517605,-3121.58,0.00028767,7]
[384927650,1757627517620,-1327.37,0.00028767,7]
[384927651,1757627517636,-400.0,0.00028767,7]
[384927652,1757627517652,-2116.65,0.00028767,7]
[384927653,1757627517668,-412.03,0.00028767,7]
[384927654,1757627517684,-400.0,0.00028767,7]
[384927655,1757627517700,-1719.45,0.00028767,7]
[384927656,1757627517714,-1710.12,0.00028767,7]
[384927657,1757627517730,-1450.37,0.00028767,7]
[384927658,1757627517745,-1987.08,0.00028767,7]
[384927659,1757627517760,-1612.89,0.00028767,7]
[384927660,1757627517775,-513.59,0.00028767,7]
[384927661,1757627517790,-836.01,0.00028767,7]
[384927662,1757627517808,-3415.13,0.00028767,7]
[384927663,1757627517824,-400.0,0.00028767,7]
[384927664,1757627517840,-1717.5,0.00028767,7]
[384927665,1757627517855,-660.1,0.00028767,7]
[384927666,1757627517870,-2173.97,0.00028767,7]
[384927667,1757627517886,-3404.31,0.00028767,7]
[384927668,1757627517901,-2122.67,0.00028767,7]
[384927669,1757627517916,-400.0,0.00028767,7]
[384927670,1757627517930,-500.0,0.00028767,2]
[384927671,1757627517945,-1824.59,0.00028767,7]
[384927672,1757627517960,-2940.84,0.00028767,7]
[384927673,1757627517975,-400.0,0.00028767,7]
[384927674,1757627517990,-400.0,0.00028767,7]
[384927675,1757627518005,-2046.07,0.00028767,7]
[384927676,1757627518021,-1664.51,0.00028767,7]
[384927677,1757627518036,-400.0,0.00028767,7]
[384927678,1757627518051,-400.0,0.00028767,7]
[384927679,1757627518067,-1145.88,0.00028767,7]
[384927680,1757627518083,-2668.52,0.00028767,7]
[384927681,1757627518099,-400.0,0.00028767,7]
[384927682,1757627518114,-400.0,0.00028767,7]
[384927683,1757627518130,-1418.74,0.00028767,7]
[384927684,1757627518146,-1033.62,0.00028767,7]
[384927685,1757627518162,-400.0,0.00028767,7]
[384927686,1757627518177,-857.22,0.00028767,7]
[384927687,1757627518189,-400.0,0.00028767,7]
[384927688,1757627518198,-400.0,0.00028767,7]
[384927689,1757627518207,-400.0,0.00028767,7]
[384927690,1757627518216,-1768.54,0.00028767,7]
[384927691,1757627518226,-1785.27,0.00028767,7]
[384927692,1757627518235,-1525.18,0.00028767,7]
[384927693,1757627518245,-3561.21,0.00028767,7]
[384927694,1757627518255,-412.28,0.00028767,7]
[384927695,1757627518264,-400.0,0.00028767,7]
[384927696,1757627518273,-1709.68,0.00028767,7]
[384927697,1757627518283,-400.0,0.00028767,7]
[384927698,1757627518292,-440.38,0.00028767,7]
[384927699,1757627518301,-2318.27,0.00028767,7]
[384927700,1757627518311,-404.79049595,0.00028767,7]
[384927701,1757627518320,-1281.61,0.00028767,7]
[384927702,1757627518332,-412.59971743,0.00028767,7]
[384927703,1757627518342,-2011.65,0.00028767,7]
[384927704,1757627518351,-746.18,0.00028767,7]
[384927705,1757627518360,-1166.63,0.00028767,7]
[384927706,1757627518370,-400.0,0.00028767,7]
[384927707,1757627518379,-400.0,0.00028767,7]
[384927708,1757627518388,-400.0,0.00028767,7]
[384927709,1757627518398,-1306.49,0.00028767,7]
[384927710,1757627518407,-1825.7,0.00028767,7]
[384927711,1757627518417,-762.39,0.00028767,7]
[384927712,1757627518427,-3800.69,0.00028767,7]
[384927713,1757627518946,-400.0,0.00028767,7]
[384927714,1757627518980,-2183.28,0.00028767,7]
[384927715,1757627519000,-631.92,0.00028767,7]
[384927716,1757627519017,-2113.02,0.00028767,7]
[384927717,1757627519027,-412.34,0.00028767,7]
[384927718,1757627519037,-478.43,0.00028767,7]
[384927719,1757627519047,-764.83,0.00028767,7]
[384927720,1757627519057,-658.91,0.00028767,7]
[384927721,1757627519066,-2212.12,0.00028767,7]
[384927722,1757627519076,-464.37941674,0.00028767,7]
[384927723,1757627519086,-400.0,0.00028767,7]
[384927724,1757627519096,-1409.6,0.00028767,7]
[384927725,1757627519105,-2621.3,0.00028767,7]
[384927726,1757627519115,-1935.52,0.00028767,7]
[384927727,1757627519124,-400.0,0.00028767,7]
[384927728,1757627519133,-792.93,0.00028767,7]
[384927729,1757627519143,-1641.57,0.00028767,7]
[384927730,1757627519153,-400.0,0.00028767,7]
[384927731,1757627519162,-2511.53,0.00028767,7]
[384927732,1757627519172,-400.0,0.00028767,7]
[384927733,1757627519182,-415.19,0.00028767,7]
[384927734,1757627519191,-400.0,0.00028767,7]
[384927735,1757627519200,-1999.25,0.00028767,7]
[384927736,1757627519209,-400.0,0.00028767,7]
[384927737,1757627519218,-935.63,0.00028767,7]
[384927738,1757627519227,-561.05,0.00028767,7]
[384927739,1757627519236,-1937.06,0.00028767,7]
[384927740,1757627519246,-622.55,0.00028767,7]
[384927741,1757627519255,-605.95,0.00028767,7]
[384927742,1757627519265,-625.67,0.00028767,7]
[384927743,1757627519274,-2434.87,0.00028767,7]
[384927744,1757627519284,-1967.02,0.00028767,7]
[384927745,1757627519293,-2064.83,0.00028767,7]
[384927746,1757627519302,-5081.16,0.00028767,7]
[384927747,1757627519311,-400.0,0.00028767,7]
[384927748,1757627519321,-2357.52,0.00028767,7]
[384927749,1757627519333,-1918.79,0.00028767,7]
[384927750,1757627519343,-688.97,0.00028767,7]
[384927751,1757627519352,-2563.41,0.00028767,7]
[384927752,1757627519362,-400.0,0.00028767,7]
[384927753,1757627519371,-400.0,0.00028767,7]
[384927754,1757627519380,-1378.05,0.00028767,7]
[384927755,1757627519389,-1782.99,0.00028767,7]
[384927756,1757627519400,-752.99,0.00028767,7]
[384927757,1757627519411,-2353.03,0.00028767,7]
[384927758,1757627519420,-400.0,0.00028767,7]
[384927759,1757627519430,-1193.85,0.00028767,7]
[384927760,1757627519439,-400.0,0.00028767,7]
[384927761,1757627519450,-1178.69,0.00028767,7]
[384927762,1757627519459,-1935.24,0.00028767,7]
[384927763,1757627519468,-1221.61,0.00028767,7]
[384927764,1757627519478,-473.76479346,0.00028767,7]
[384927765,1757627519488,-429.41,0.00028767,7]
[384927766,1757627519498,-459.96,0.00028767,7]
[384927767,1757627519508,-1279.89,0.00028767,7]
[384927768,1757627519517,-2252.22,0.00028767,7]
[384927769,1757627519526,-735.02,0.00028767,7]
[384927770,1757627519536,-400.0,0.00028767,7]
[384927771,1757627519546,-2407.5,0.00028767,7]
[384927772,1757627519556,-2161.65,0.00028767,7]
[384927773,1757627519566,-1425.68,0.00028767,7]
[384927774,1757627519575,-1362.92,0.00028767,7]
[384927775,1757627519586,-1095.6,0.00028767,7]
[384927776,1757627519595,-2476.85,0.00028767,7]
[384927777,1757627519605,-1991.02,0.00028767,7]
[384927778,1757627519614,-400.0,0.00028767,7]
[384927779,1757627519623,-2430.43,0.00028767,7]
[384927780,1757627519633,-400.0,0.00028767,7]
[384927781,1757627519642,-465.81,0.00028767,7]
[384927782,1757627519651,-2085.01,0.00028767,7]
[384927783,1757627519661,-2781.72,0.00028767,7]
[384927784,1757627519670,-1977.7,0.00028767,7]
[384927785,1757627519679,-400.0,0.00028767,7]
[384927786,1757627519688,-400.0,0.00028767,7]
[384927787,1757627519698,-2696.49,0.00028767,7]
[384927788,1757627519707,-430.58,0.00028767,7]
[384927789,1757627519717,-3938.86,0.00028767,7]
[384927790,1757627519726,-2712.62,0.00028767,7]
[384927791,1757627519735,-400.0,0.00028767,7]
[384927792,1757627519745,-4392.91,0.00028767,7]
[384927793,1757627519754,-480.79619494,0.00028767,7]
[384927794,1757627519763,-1492.88,0.00028767,7]
[384927795,1757627519772,-400.0,0.00028767,7]
[384927796,1757627519782,-1464.34,0.00028767,7]
[384927797,1757627519791,-591.66,0.00028767,7]
[384927798,1757627519801,-400.0,0.00028767,7]
[384927799,1757627519810,-400.0,0.00028767,7]
[384927800,1757627519819,-666.94,0.00028767,7]
[384927801,1757627519828,-157.08445018,0.00028767,7]
[384927802,1757627519837,-1806.44,0.00028767,7]
[384927803,1757627519846,-400.0,0.00028767,7]
[384927804,1757627519856,-1981.45,0.00028767,7]
[384927805,1757627519865,-3388.27,0.00028767,7]
[384927806,1757627519874,-2436.65,0.00028767,7]
[384927807,1757627519882,-881.67,0.00028767,7]
[384927808,1757627519891,-406.24,0.00028767,7]
[384927809,1757627519900,-400.0,0.00028767,7]
[384927810,1757627519909,-1172.06,0.00028767,7]
[384927811,1757627519919,-780.5,0.00028767,7]
[384927812,1757627519929,-554.15,0.00028767,7]
[384927813,1757627519938,-4294.22,0.00028767,7]
[384927814,1757627519947,-2452.85,0.00028767,7]
[384927815,1757627519959,-411.4478366,0.00028767,7]
[384927816,1757627519969,-438.53,0.00028767,7]
[384927817,1757627519978,-604.66,0.00028767,7]
[384927818,1757627519988,-534.25,0.00028767,7]
[384927819,1757627519997,-400.0,0.00028767,7]
[384927820,1757627520006,-2886.24,0.00028767,7]
[384927821,1757627520016,-3147.12,0.00028767,7]
[384927822,1757627520025,-400.0,0.00028767,7]
[384927823,1757627520035,-400.0,0.00028767,7]
[384927824,1757627520044,-2500.66,0.00028767,7]
[384927825,1757627520054,-1752.06,0.00028767,7]
[384927826,1757627520063,-400.0,0.00028767,7]
[384927827,1757627520075,-1536.25,0.00028767,7]
[384927828,1757627520084,-3110.75,0.00028767,7]
[384927829,1757627520093,-3514.52,0.00028767,7]
[384927830,1757627520102,-851.92,0.00028767,7]
[384927831,1757627520111,-1998.85,0.00028767,7]
[384927832,1757627520120,-2234.85,0.00028767,7]
[384927833,1757627520129,-1639.17,0.00028767,7]
[384927834,1757627520138,-2407.64,0.00028767,7]
[384927835,1757627520147,-400.0,0.00028767,7]
[384927836,1757627520156,-1046.34,0.00028767,7]
[384927837,1757627520165,-1220.02,0.00028767,7]
[384927838,1757627520174,-482.39,0.00028767,7]
[384927839,1757627520183,-2770.33,0.00028767,7]
[384927840,1757627520192,-436.15,0.00028767,7]
[384927841,1757627520202,-1846.46,0.00028767,7]
[384927842,1757627520212,-400.0,0.00028767,7]
[384927843,1757627520222,-400.0,0.00028767,7]
[384927844,1757627520232,-2184.88,0.00028767,7]
[384927845,1757627520241,-1957.68,0.00028767,7]
[384927846,1757627520251,-1730.33,0.00028767,7]
[384927847,1757627520261,-1786.28,0.00028767,7]
[384927848,1757627520271,-1265.01,0.00028767,7]
[384927849,1757627520280,-407.19,0.00028767,7]
[384927850,1757627520291,-2703.11,0.00028767,7]
[384927851,1757627520300,-688.3,0.00028767,7]
[384927852,1757627520309,-678.34,0.00028767,7]
[384927853,1757627520319,-2568.73,0.00028767,7]
[384927854,1757627520329,-3106.86,0.00028767,7]
[384927855,1757627520340,-1591.84,0.00028767,7]
[384927856,1757627520350,-174.49824255,0.00028767,7]
[384927857,1757627520359,-423.35,0.00028767,7]
[384927858,1757627520369,-2512.36,0.00028767,7]
[384927859,1757627520378,-2358.62,0.00028767,7]
[384927860,1757627520388,-655.76,0.00028767,7]
[384927861,1757627520398,-655.88,0.00028767,7]
[384927862,1757627520408,-1989.93,0.00028767,7]
[384927863,1757627520417,-400.0,0.00028767,7]
[384927864,1757627520426,-6625.15,0.00028767,7]
[384927865,1757627520435,-400.0,0.00028767,7]
[384927866,1757627520445,-1565.73,0.00028767,7]
[384927867,1757627520455,-2433.07,0.00028767,7]
[384927868,1757627520465,-400.0,0.00028767,7]
[384927869,1757627520474,-1949.62,0.00028767,7]
[384927870,1757627520483,-2320.6,0.00028767,7]
[384927871,1757627520492,-400.0,0.00028767,7]
[384927872,1757627520502,-2218.78,0.00028767,7]
[384927873,1757627520511,-3743.48,0.00028767,7]
[384927874,1757627520520,-1700.41,0.00028767,7]
[384927875,1757627520529,-581.88,0.00028767,7]
[384927876,1757627520538,-601.83,0.00028767,7]
[384927877,1757627520547,-400.0,0.00028767,7]
[384927878,1757627520557,-2332.54,0.00028767,7]
[384927879,1757627520566,-400.0,0.00028767,7]
[384927880,1757627520575,-2249.08,0.00028767,7]
[384927881,1757627520584,-726.15,0.00028767,7]
[384927882,1757627520594,-2742.88,0.00028767,7]
[384927883,1757627520603,-877.79,0.00028767,7]
[384927884,1757627520612,-2125.99,0.00028767,7]
[384927885,1757627520621,-400.0,0.00028767,7]
[384927886,1757627520631,-400.0,0.00028767,7]
[384927887,1757627520640,-1691.78,0.00028767,7]
[384927888,1757627520650,-241.20923642,0.00028767,7]
[384927889,1757627520660,-2192.92,0.00028767,7]
[384927890,1757627520669,-2438.57,0.00028767,7]
[384927891,1757627520678,-1723.17,0.00028767,7]
[384927892,1757627520687,-2371.58,0.00028767,7]
[384927893,1757627520696,-882.4,0.00028767,7]
[384927894,1757627520706,-2985.19,0.00028767,7]
[384927895,1757627520715,-2972.96,0.00028767,7]
[384927896,1757627520724,-849.58,0.00028767,7]
[384927897,1757627520733,-512.39,0.00028767,7]
[384927898,1757627520743,-3150.88,0.00028767,7]
[384927899,1757627520753,-2678.71,0.00028767,7]
[384927900,1757627520762,-1003.52,0.00028767,7]
[384927901,1757627520772,-764.35,0.00028767,7]
[384927902,1757627520781,-2234.94,0.00028767,7]
[384927903,1757627520790,-2578.26,0.00028767,7]
[384927904,1757627520799,-1462.94,0.00028767,7]
[384927905,1757627520808,-1828.11,0.00028767,7]
[384927906,1757627520817,-470.08,0.00028767,7]
[384927907,1757627520826,-1307.56,0.00028767,7]
[384927908,1757627520835,-400.0,0.00028767,7]
[384927909,1757627520844,-1772.99,0.00028767,7]
[384927910,1757627520853,-2097.33,0.00028767,7]
[384927911,1757627520862,-933.0,0.00028767,7]
[384927912,1757627520872,-952.28,0.00028767,7]
[384927913,1757627520881,-1662.68,0.00028767,7]
[384927914,1757627520890,-610.96,0.00028767,7]
[384927915,1757627520900,-7841.89,0.00028767,7]
[384927916,1757627520909,-400.0,0.00028767,7]
[384927917,1757627520918,-400.0,0.00028767,7]
[384927918,1757627520927,-400.0,0.00028767,7]
[384927919,1757627520936,-1587.28,0.00028767,7]
[384927920,1757627520945,-1604.78,0.00028767,7]
[384927921,1757627520954,-2174.86,0.00028767,7]
[384927922,1757627520964,-1272.03,0.00028767,7]
[384927923,1757627520974,-11061.06,0.00028767,7]
[384927924,1757627520984,-400.0,0.00028767,7]
[384927925,1757627520993,-596.32,0.00028767,7]
[384927926,1757627521003,-565.46,0.00028767,7]
[384927927,1757627521012,-2131.53,0.00028767,7]
[384927928,1757627521021,-2498.42,0.00028767,7]
[384927929,1757627521031,-6488.57,0.00028767,7]
[384927930,1757627521040,-5525.7,0.00028767,7]
[384927931,1757627521049,-411.10022793,0.00028767,7]
[384927932,1757627521059,-1601.69,0.00028767,7]
[384927933,1757627521068,-455.17,0.00028767,7]
[384927934,1757627521078,-1668.79,0.00028767,7]
[384927935,1757627521087,-1352.16,0.00028767,7]
[384927936,1757627521096,-11877.61,0.00028767,7]
[384927937,1757627521105,-400.0,0.00028767,7]
[384927938,1757627521114,-2986.7,0.00028767,7]
[384927939,1757627521124,-400.0,0.00028767,7]
[384927940,1757627521133,-400.0,0.00028767,7]
[384927941,1757627521142,-2328.89,0.00028767,7]
[384927942,1757627521152,-4724.84,0.00028767,7]
[384927943,1757627521161,-400.0,0.00028767,7]
[384927944,1757627521171,-2071.12,0.00028767,7]
[384927945,1757627521181,-3292.32,0.00028767,7]
[384927946,1757627521190,-400.0,0.00028767,7]
[384927947,1757627521199,-400.0,0.00028767,7]
[384927948,1757627521209,-657.95,0.00028767,7]
[384927949,1757627521218,-2017.2,0.00028767,7]
[384927950,1757627521228,-2362.15,0.00028767,7]
[384927951,1757627521238,-1981.94,0.00028767,7]
[384927952,1757627521247,-914.7,0.00028767,7]
[384927953,1757627521257,-710.2,0.00028767,7]
[384927954,1757627521267,-400.0,0.00028767,7]
[384927955,1757627521276,-847.93,0.00028767,7]
[384927956,1757627521286,-1045.52,0.00028767,7]
[384927957,1757627521296,-752.72,0.00028767,7]
[384927958,1757627521305,-2021.8,0.00028767,7]
[384927959,1757627521315,-2367.19,0.00028767,7]
[384927960,1757627521325,-1204.45,0.00028767,7]
[384927961,1757627521340,-1922.67,0.00028767,7]
[384927962,1757627521349,-2147.9,0.00028767,7]
[384927963,1757627521359,-400.0,0.00028767,7]
[384927964,1757627521368,-610.19,0.00028767,7]
[384927965,1757627521378,-737.4,0.00028767,7]
[384927966,1757627521387,-2005.27,0.00028767,7]
[384927967,1757627521397,-2282.8,0.00028767,7]
[384927968,1757627521406,-868.86,0.00028767,7]
[384927969,1757627521416,-400.0,0.00028767,7]
[384927970,1757627521425,-2067.86,0.00028767,7]
[384927971,1757627521435,-1662.86,0.00028767,7]
[384927972,1757627521445,-339.78,0.00028767,7]
[384927973,1757627521454,-400.0,0.00028767,7]
[384927974,1757627521464,-581.46,0.00028767,7]
[384927975,1757627521474,-973.3,0.00028767,7]
[384927976,1757627521483,-2104.81,0.00028767,7]
[384927977,1757627521492,-901.74,0.00028767,7]
[384927978,1757627521502,-1564.75,0.00028767,7]
[384927979,1757627521511,-3042.61,0.00028767,7]
[384927980,1757627521521,-633.32,0.00028767,7]
[384927981,1757627521531,-400.0,0.00028767,7]
[384927982,1757627521540,-406.9,0.00028767,7]
[384927983,1757627521550,-2798.29,0.00028767,7]
[384927984,1757627521560,-473.92,0.00028767,7]
[384927985,1757627521570,-400.0,0.00028767,7]
[384927986,1757627521579,-1232.08,0.00028767,7]
[384927987,1757627521589,-825.48,0.00028767,7]
[384927988,1757627521599,-1649.61,0.00028767,7]
[384927989,1757627521608,-400.0,0.00028767,7]
[384927990,1757627521618,-400.0,0.00028767,7]
[384927991,1757627521628,-180.50294052,0.00028767,7]
[384927992,1757627521637,-401.49,0.00028767,7]
[384927993,1757627521647,-493.86,0.00028767,7]
[384927994,1757627521656,-2428.81,0.00028767,7]
[384927995,1757627521665,-545.25,0.00028767,7]
[384927996,1757627521675,-3292.07,0.00028767,7]
[384927997,1757627521685,-400.0,0.00028767,7]
[384927998,1757627521694,-1770.26,0.00028767,7]
[384927999,1757627521704,-400.0,0.00028767,7]
[384928000,1757627521714,-400.0,0.00028767,7]
[384928001,1757627521723,-575.7,0.00028767,7]
[384928002,1757627521733,-1537.35,0.00028767,7]
[384928003,1757627521742,-2235.0,0.00028767,7]
[384928004,1757627521752,-400.0,0.00028767,7]
[384928005,1757627521761,-407.20840319,0.00028767,7]
[384928006,1757627521770,-4315.46,0.00028767,7]
[384928007,1757627521782,-2043.23,0.00028767,7]
[384928008,1757627521791,-542.72,0.00028767,7]
[384928009,1757627521801,-497.85,0.00028767,7]
[384928010,1757627521811,-400.0,0.00028767,7]
[384928011,1757627521820,-774.82,0.00028767,7]
[384928012,1757627521830,-2030.44,0.00028767,7]
[384928013,1757627521839,-444.49,0.00028767,7]
[384928014,1757627521849,-400.0,0.00028767,7]
[384928015,1757627521859,-2457.19,0.00028767,7]
[384928016,1757627521869,-400.0,0.00028767,7]
[384928017,1757627521879,-150.0,0.00028767,2]
[384928018,1757627521889,-2221.42,0.00028767,7]
[384928019,1757627521898,-2267.83,0.00028767,7]
[384928020,1757627521907,-400.0,0.00028767,7]
[384928021,1757627521917,-400.0,0.00028767,7]
[384928022,1757627521928,-400.0,0.00028767,7]
[384928023,1757627521938,-1381.33,0.00028767,7]
[384928024,1757627521947,-977.79,0.00028767,7]
[384928025,1757627521957,-400.0,0.00028767,7]
[384928026,1757627521967,-596.22,0.00028767,7]
[384928027,1757627521976,-2044.64,0.00028767,7]
[384928028,1757627521986,-400.0,0.00028767,7]
[384928029,1757627521996,-1597.41,0.00028767,7]
[384928030,1757627522006,-1990.61,0.00028767,7]
[384928031,1757627522015,-400.0,0.00028767,7]
[384928032,1757627522025,-1787.37,0.00028767,7]
[384928033,1757627522035,-315.91090967,0.00028767,2]
[384928034,1757627522044,-315.91090967,0.00028767,2]
[384928035,1757627522054,-1500.0,0.00028768,5]
[384928036,1757627522064,-1010.44531978,0.00028768,5]
[384928037,1757627522073,-1500.0,0.00028768,2]
[384928038,1757627522284,-1006.55021767,0.00028768,5]
[384928039,1757627522324,-1251.88420753,0.00028768,5]
[384928040,1757627522337,-1330.22672326,0.00028768,5]
[384928041,1757627522347,-383.24266052,0.00028768,5]
[384928042,1757627522357,-502.49944014,0.00028768,5]
[384928043,1757627522367,-619.03657046,0.00028768,5]
[384928044,1757627522377,-1504.33985302,0.00028768,5]
[384928045,1757627522387,-672.09054573,0.00028768,5]
[384928046,1757627522396,-1500.0,0.00028768,5]
[384928047,1757627522405,-1500.0,0.00028768,5]
[384928048,1757627522415,-1500.0,0.00028768,5]
[384928049,1757627522425,-166.45700361,0.00028777,2]
[384928050,1757627522434,-3862.17,0.000288,7]
[384928051,1757627522444,-1000.0,0.00028821,5]
[384928052,1757627522453,-229.04773594,0.00028821,5]
[384928053,1757627522463,-1000.0,0.00028821,5]
[384928054,1757627522473,-548.48936781,0.00028821,5]
[384928055,1757627522483,-336.3,0.00028854,2]
[384928056,1757627522492,-1062.669359,0.00028886,2]
[384928057,1757627522502,-168.0,0.0002889,2]
[384928058,1757627522511,-960.39,0.000289,7]
[384928059,1757627522521,-524.95802244,0.00028913,6]
[384928060,1757627522531,-767.42320048,0.0002894,2]
[384928061,1757627522540,-160.0,0.00028978,2]
[384928062,1757627522549,-51117.82692009,0.00029,2]
[384928063,1757627522559,-146247.63,0.00029,7]
[384928064,1757627522568,-2420.67,0.00029009,2]
[384928065,1757627522578,-1246.17716835,0.00029016,5]